[Event "*** Titled Tuesday Blitz"]
[Site "Chess.com"]
[Date "2018.05.01"]
[Round "5"]
[White "Bad4life"]
[Black "PowerThinking2650"]
[Result "0-1"]
[WhiteElo "2358"]
[BlackElo "2288"]
[TimeControl "180+2"]
[EndTime "14:07:59 PDT"]
[Termination "PowerThinking2650 won by checkmate"]

1. e4 {[%clk 0:03:01.9]} 1... e5 {[%clk 0:03:00.3]} 2. Nf3 {[%clk 0:03:02.2]}
2... Nc6 {[%clk 0:03:01.2]} 3. Bc4 {[%clk 0:03:01.8]} 3... Nf6 {[%clk 0:03:01]}
4. d3 {[%clk 0:03:02.9]} 4... h6 {[%clk 0:03:01.7]} 5. a4 {[%clk 0:03:03.4]}
5... g6 {[%clk 0:02:53.9]} 6. O-O {[%clk 0:03:04.2]} 6... Bg7 {[%clk 0:02:54.4]}
7. c3 {[%clk 0:03:05.6]} 7... d6 {[%clk 0:02:51.3]} 8. d4 {[%clk 0:03:04.9]}
8... Bg4 {[%clk 0:02:51]} 9. h3 {[%clk 0:02:54.6]} 9... Bxf3 {[%clk 0:02:49]}
10. Qxf3 {[%clk 0:02:56.5]} 10... exd4 {[%clk 0:02:47.2]} 11. Bb5 {[%clk
0:02:30]} 11... dxc3 {[%clk 0:02:33.3]} 12. e5 {[%clk 0:02:24.5]} 12... dxe5
{[%clk 0:02:20.3]} 13. Rd1 {[%clk 0:02:10.9]} 13... Nd7 {[%clk 0:01:25.8]} 14.
Bxc6 {[%clk 0:02:09.5]} 14... bxc6 {[%clk 0:01:26.6]} 15. Qxc6 {[%clk
0:02:06.7]} 15... Rb8 {[%clk 0:01:10.9]} 16. Nxc3 {[%clk 0:01:56]} 16... Rb6
{[%clk 0:01:11.5]} 17. Qc4 {[%clk 0:01:49.5]} 17... O-O {[%clk 0:01:04.6]} 18.
Nd5 {[%clk 0:01:43.5]} 18... Rd6 {[%clk 0:01:04]} 19. Be3 {[%clk 0:01:29.7]}
19... Nb6 {[%clk 0:00:57.9]} 20. Bxb6 {[%clk 0:01:24.4]} 20... axb6 {[%clk
0:00:57.1]} 21. Ne3 {[%clk 0:00:53.2]} 21... Rd4 {[%clk 0:00:52.7]} 22. Qc6
{[%clk 0:00:47.9]} 22... Qe7 {[%clk 0:00:17.9]} 23. Nd5 {[%clk 0:00:42.7]} 23...
Qg5 {[%clk 0:00:12.1]} 24. Nxc7 {[%clk 0:00:29.6]} 24... Rfd8 {[%clk 0:00:11.3]}
25. Rxd4 {[%clk 0:00:20.3]} 25... exd4 {[%clk 0:00:12.3]} 26. Qxb6 {[%clk
0:00:20]} 26... d3 {[%clk 0:00:12.4]} 27. Rd1 {[%clk 0:00:15.5]} 27... Bd4
{[%clk 0:00:11.4]} 28. Qc6 {[%clk 0:00:09.3]} 28... Qf4 {[%clk 0:00:09.2]} 29.
Rf1 {[%clk 0:00:08]} 29... d2 {[%clk 0:00:08.8]} 30. Nd5 {[%clk 0:00:09]} 30...
Qxf2+ {[%clk 0:00:07.7]} 31. Rxf2 {[%clk 0:00:08.3]} 31... d1=Q+ {[%clk
0:00:08.7]} 32. Kh2 {[%clk 0:00:08.4]} 32... Bxf2 {[%clk 0:00:09.1]} 33. Ne7+
{[%clk 0:00:04.3]} 33... Kh7 {[%clk 0:00:09.7]} 34. g3 {[%clk 0:00:03]} 34...
Qg1# {[%clk 0:00:10.5]} 0-1

[Event "*** Titled Tuesday Blitz"]
[Site "Chess.com"]
[Date "2018.05.01"]
[Round "5"]
[White "Sanan_Sjugirov"]
[Black "JSPrepz"]
[Result "0-1"]
[WhiteElo "2778"]
[BlackElo "2641"]
[TimeControl "180+2"]
[EndTime "14:08:05 PDT"]
[Termination "JSPrepz won by resignation"]

1. e4 {[%clk 0:03:01.9]} 1... e5 {[%clk 0:02:59]} 2. Nf3 {[%clk 0:03:02.7]} 2...
Nc6 {[%clk 0:03:00.1]} 3. Bb5 {[%clk 0:03:03.5]} 3... f5 {[%clk 0:03:00.7]} 4.
d3 {[%clk 0:03:03.4]} 4... fxe4 {[%clk 0:03:01.7]} 5. dxe4 {[%clk 0:03:04.4]}
5... Nf6 {[%clk 0:03:03.2]} 6. O-O {[%clk 0:03:04.5]} 6... Bc5 {[%clk
0:02:55.3]} 7. Bxc6 {[%clk 0:02:54.7]} 7... bxc6 {[%clk 0:02:55.8]} 8. Nxe5
{[%clk 0:02:55.7]} 8... O-O {[%clk 0:02:57]} 9. Nd3 {[%clk 0:02:43]} 9... Bd4
{[%clk 0:02:56.9]} 10. Nd2 {[%clk 0:02:27.7]} 10... d5 {[%clk 0:01:40.7]} 11. e5
{[%clk 0:02:21.2]} 11... Bg4 {[%clk 0:01:32.8]} 12. Qe1 {[%clk 0:02:19.4]} 12...
Re8 {[%clk 0:01:26.3]} 13. Nb3 {[%clk 0:02:14.1]} 13... Bb6 {[%clk 0:01:26.9]}
14. Bg5 {[%clk 0:02:13.9]} 14... Qd7 {[%clk 0:01:22]} 15. Nbc5 {[%clk
0:01:45.2]} 15... Qf7 {[%clk 0:00:44.2]} 16. Bxf6 {[%clk 0:01:41.8]} 16... gxf6
{[%clk 0:00:45.1]} 17. f3 {[%clk 0:01:42.7]} 17... Bf5 {[%clk 0:00:46.3]} 18.
Qg3+ {[%clk 0:01:35]} 18... Kh8 {[%clk 0:00:47.4]} 19. e6 {[%clk 0:01:31.4]}
19... Rxe6 {[%clk 0:00:44.9]} 20. Kh1 {[%clk 0:01:28.9]} 20... Re2 {[%clk
0:00:45.2]} 21. Qf4 {[%clk 0:01:09]} 21... Qg6 {[%clk 0:00:28.4]} 22. g4 {[%clk
0:00:51.4]} 22... Bxd3 {[%clk 0:00:29.5]} 23. Nxd3 {[%clk 0:00:52.9]} 23... Rxc2
{[%clk 0:00:29.3]} 24. Rad1 {[%clk 0:00:47.6]} 24... Re8 {[%clk 0:00:29.4]} 25.
Rfe1 {[%clk 0:00:44.3]} 25... Ree2 {[%clk 0:00:29.1]} 26. Rxe2 {[%clk
0:00:43.1]} 26... Rxe2 {[%clk 0:00:31]} 27. b4 {[%clk 0:00:39.2]} 27... Kg7
{[%clk 0:00:29.1]} 28. a4 {[%clk 0:00:39]} 28... a5 {[%clk 0:00:27.7]} 29. bxa5
{[%clk 0:00:37.3]} 29... Bxa5 {[%clk 0:00:29.1]} 30. Qc1 {[%clk 0:00:34.6]}
30... Qh6 {[%clk 0:00:18.9]} 31. Qxh6+ {[%clk 0:00:33.2]} 31... Kxh6 {[%clk
0:00:20.8]} 32. Rc1 {[%clk 0:00:34.5]} 32... Re3 {[%clk 0:00:19.1]} 33. Nc5
{[%clk 0:00:32.7]} 33... Rxf3 {[%clk 0:00:20.1]} 34. Nb7 {[%clk 0:00:31.8]}
34... Bd2 {[%clk 0:00:21.3]} 35. Rxc6 {[%clk 0:00:32.2]} 35... Kg5 {[%clk
0:00:22.4]} 36. Kg2 {[%clk 0:00:27]} 36... Ra3 {[%clk 0:00:23.5]} 37. Nc5 {[%clk
0:00:25]} 37... Kxg4 {[%clk 0:00:20.2]} 38. Rxc7 {[%clk 0:00:25.4]} 38... Ra2
{[%clk 0:00:21.3]} 39. h3+ {[%clk 0:00:23.2]} 39... Kf4 {[%clk 0:00:22.7]} 40.
Nd3+ {[%clk 0:00:21.1]} 40... Ke3 {[%clk 0:00:23.3]} 41. Nc5 {[%clk 0:00:16.5]}
41... Ba5+ {[%clk 0:00:23.9]} 0-1

[Event "*** Titled Tuesday Blitz"]
[Site "Chess.com"]
[Date "2018.05.01"]
[Round "5"]
[White "FearlessKing64"]
[Black "windking123"]
[Result "0-1"]
[WhiteElo "2167"]
[BlackElo "2292"]
[TimeControl "180+2"]
[EndTime "14:08:06 PDT"]
[Termination "windking123 won by resignation"]

1. e4 {[%clk 0:03:01.9]} 1... c5 {[%clk 0:03:00.2]} 2. Nf3 {[%clk 0:03:02.5]}
2... e6 {[%clk 0:03:00.8]} 3. c4 {[%clk 0:03:02.8]} 3... Nc6 {[%clk 0:02:57.9]}
4. Nc3 {[%clk 0:03:03.5]} 4... Nf6 {[%clk 0:02:48.1]} 5. Be2 {[%clk 0:03:00.7]}
5... Be7 {[%clk 0:02:42.5]} 6. d4 {[%clk 0:02:58.7]} 6... cxd4 {[%clk
0:02:35.3]} 7. Nxd4 {[%clk 0:03:00.6]} 7... O-O {[%clk 0:02:35.8]} 8. Be3 {[%clk
0:03:00.7]} 8... d5 {[%clk 0:02:23.6]} 9. cxd5 {[%clk 0:02:59]} 9... exd5 {[%clk
0:02:23.6]} 10. Nxc6 {[%clk 0:02:55.8]} 10... bxc6 {[%clk 0:02:23.8]} 11. exd5
{[%clk 0:02:57.2]} 11... cxd5 {[%clk 0:02:21.6]} 12. O-O {[%clk 0:02:54.6]}
12... Be6 {[%clk 0:02:21.6]} 13. Bd4 {[%clk 0:02:52.5]} 13... Qa5 {[%clk
0:02:16.6]} 14. Bf3 {[%clk 0:02:51.8]} 14... Rab8 {[%clk 0:02:14.9]} 15. Qd2
{[%clk 0:02:25.3]} 15... Qb4 {[%clk 0:01:52.5]} 16. a3 {[%clk 0:01:57.4]} 16...
Qb7 {[%clk 0:01:34.3]} 17. b4 {[%clk 0:01:45.5]} 17... Ne4 {[%clk 0:01:08.6]}
18. Bxe4 {[%clk 0:01:32.9]} 18... dxe4 {[%clk 0:01:10.4]} 19. Qe3 {[%clk
0:01:30.9]} 19... f5 {[%clk 0:01:09]} 20. g3 {[%clk 0:01:22.8]} 20... Rbd8
{[%clk 0:00:37.2]} 21. Rad1 {[%clk 0:01:12.1]} 21... f4 {[%clk 0:00:31.5]} 22.
gxf4 {[%clk 0:01:02.4]} 22... Bg4 {[%clk 0:00:29.8]} 23. Qg3 {[%clk 0:00:45.4]}
23... h5 {[%clk 0:00:08.2]} 24. h3 {[%clk 0:00:46.4]} 24... Rxd4 {[%clk
0:00:07.1]} 25. Rxd4 {[%clk 0:00:46.8]} 25... Bf3 {[%clk 0:00:08.2]} 26. Nd5
{[%clk 0:00:41]} 26... Bd6 {[%clk 0:00:08.2]} 27. Rc1 {[%clk 0:00:22.4]} 27...
Rf5 {[%clk 0:00:08.8]} 28. Rc7 {[%clk 0:00:13]} 28... Bxc7 {[%clk 0:00:09.4]}
29. Ne7+ {[%clk 0:00:14.1]} 29... Kh7 {[%clk 0:00:09.9]} 30. Nxf5 {[%clk
0:00:15.9]} 30... Bb6 {[%clk 0:00:11.3]} 31. Rd6 {[%clk 0:00:14.2]} 31... Qf7
{[%clk 0:00:12.1]} 32. Qg5 {[%clk 0:00:13.3]} 32... e3 {[%clk 0:00:12.3]} 33.
fxe3 {[%clk 0:00:13.6]} 33... Be4 {[%clk 0:00:12.6]} 34. Nh4 {[%clk 0:00:13.4]}
34... Bxe3+ {[%clk 0:00:13.3]} 35. Kh2 {[%clk 0:00:14.8]} 35... Bxf4+ {[%clk
0:00:14.2]} 36. Qxf4 {[%clk 0:00:13.5]} 36... Qxf4+ {[%clk 0:00:15.8]} 0-1

[Event "*** Titled Tuesday Blitz"]
[Site "Chess.com"]
[Date "2018.05.01"]
[Round "5"]
[White "MehdiHosseinipour"]
[Black "dhanushbharadwaj"]
[Result "1-0"]
[WhiteElo "2442"]
[BlackElo "2512"]
[TimeControl "180+2"]
[EndTime "14:08:16 PDT"]
[Termination "MehdiHosseinipour won by resignation"]

1. e4 {[%clk 0:02:50.7]} 1... c5 {[%clk 0:02:59.3]} 2. d4 {[%clk 0:02:51.5]}
2... cxd4 {[%clk 0:03:00.1]} 3. c3 {[%clk 0:02:52.7]} 3... dxc3 {[%clk 0:02:59]}
4. Nxc3 {[%clk 0:02:54.6]} 4... Nc6 {[%clk 0:02:59.1]} 5. Nf3 {[%clk 0:02:55.4]}
5... e6 {[%clk 0:02:59.4]} 6. Bc4 {[%clk 0:02:56]} 6... a6 {[%clk 0:03:00.7]} 7.
O-O {[%clk 0:02:56.9]} 7... Bb4 {[%clk 0:03:00]} 8. Qe2 {[%clk 0:02:53]} 8...
Nge7 {[%clk 0:02:59.1]} 9. a3 {[%clk 0:02:47.5]} 9... Bxc3 {[%clk 0:02:58.2]}
10. bxc3 {[%clk 0:02:49.4]} 10... h6 {[%clk 0:02:59.5]} 11. a4 {[%clk
0:02:47.6]} 11... O-O {[%clk 0:02:57.9]} 12. Ba3 {[%clk 0:02:48.4]} 12... Re8
{[%clk 0:02:59.4]} 13. e5 {[%clk 0:02:45.3]} 13... Ng6 {[%clk 0:02:58.4]} 14.
Bd6 {[%clk 0:02:45.9]} 14... b6 {[%clk 0:02:58.3]} 15. Qe3 {[%clk 0:02:42.6]}
15... Bb7 {[%clk 0:02:58]} 16. Rab1 {[%clk 0:02:42.8]} 16... Rc8 {[%clk
0:02:57]} 17. Rxb6 {[%clk 0:02:41.7]} 17... Na5 {[%clk 0:02:41.8]} 18. Bxa6
{[%clk 0:02:35]} 18... Bxf3 {[%clk 0:01:32.1]} 19. Bxc8 {[%clk 0:02:25.7]} 19...
Nc4 {[%clk 0:01:31.3]} 20. Qxf3 {[%clk 0:02:26.1]} 20... Nxb6 {[%clk 0:01:27.8]}
21. Ba6 {[%clk 0:02:19.4]} 21... Nxa4 {[%clk 0:01:26.4]} 22. Bb5 {[%clk
0:02:19.2]} 22... Nb6 {[%clk 0:01:25.4]} 23. c4 {[%clk 0:02:12.8]} 23... Qg5
{[%clk 0:01:18.5]} 24. Qg3 {[%clk 0:02:02.5]} 24... Rc8 {[%clk 0:01:13.7]} 25.
Qxg5 {[%clk 0:02:00.7]} 25... hxg5 {[%clk 0:01:12.1]} 26. c5 {[%clk 0:02:02.6]}
26... Nd5 {[%clk 0:01:10.1]} 27. Bxd7 {[%clk 0:02:02.5]} 27... Ra8 {[%clk
0:01:10.8]} 28. Rb1 {[%clk 0:01:53.5]} 28... Nf8 {[%clk 0:01:11]} 29. Bc6 {[%clk
0:01:52.6]} 29... Rc8 {[%clk 0:01:08.5]} 30. Bb7 {[%clk 0:01:52.6]} 30... Re8
{[%clk 0:01:04.4]} 31. c6 {[%clk 0:01:48.2]} 31... Ng6 {[%clk 0:00:43.5]} 32. c7
{[%clk 0:01:46.3]} 32... Nxc7 {[%clk 0:00:40.8]} 33. Bxc7 {[%clk 0:01:31.8]}
33... Nf4 {[%clk 0:00:41.2]} 34. Bd6 {[%clk 0:01:32.3]} 34... f6 {[%clk
0:00:38.6]} 35. Bc6 {[%clk 0:01:27.7]} 35... Rc8 {[%clk 0:00:35.9]} 36. Rb8
{[%clk 0:01:29.3]} 36... Rxb8 {[%clk 0:00:35.1]} 37. Bxb8 {[%clk 0:01:30]} 37...
Ne2+ {[%clk 0:00:36.5]} 38. Kf1 {[%clk 0:01:26.9]} 38... Nd4 {[%clk 0:00:38.4]}
39. Ba4 {[%clk 0:01:25.9]} 39... Kf7 {[%clk 0:00:37.4]} 40. exf6 {[%clk
0:01:26.4]} 40... gxf6 {[%clk 0:00:37.6]} 41. Ba7 {[%clk 0:01:28.3]} 41... Nf5
{[%clk 0:00:37.8]} 42. Bb3 {[%clk 0:01:28.2]} 42... Ne7 {[%clk 0:00:38.8]} 43.
Bc5 {[%clk 0:01:28]} 43... Nc6 {[%clk 0:00:39.2]} 44. Ke2 {[%clk 0:01:26.5]}
44... Ne5 {[%clk 0:00:40.5]} 45. h3 {[%clk 0:01:26.3]} 45... Nd7 {[%clk
0:00:41.3]} 46. Bd6 {[%clk 0:01:25.9]} 46... f5 {[%clk 0:00:39.7]} 47. Ke3
{[%clk 0:01:27.8]} 47... Kf6 {[%clk 0:00:40.1]} 48. f4 {[%clk 0:01:28.7]} 48...
gxf4+ {[%clk 0:00:40.4]} 49. Bxf4 {[%clk 0:01:30.3]} 49... e5 {[%clk 0:00:41.7]}
50. Bh2 {[%clk 0:01:31.5]} 50... Nc5 {[%clk 0:00:41.6]} 51. Bd5 {[%clk
0:01:31.4]} 51... Na6 {[%clk 0:00:35.4]} 52. Bg1 {[%clk 0:01:29.8]} 52... Nb4
{[%clk 0:00:36.5]} 53. Bb3 {[%clk 0:01:30.5]} 53... Nc6 {[%clk 0:00:36.9]} 54.
Kd3 {[%clk 0:01:30.6]} 54... Nb4+ {[%clk 0:00:32]} 55. Kc3 {[%clk 0:01:30.3]}
55... Nc6 {[%clk 0:00:33.5]} 56. Bc5 {[%clk 0:01:30.6]} 56... Nd8 {[%clk
0:00:32.5]} 57. Bd5 {[%clk 0:01:30.9]} 57... Kg6 {[%clk 0:00:26.2]} 58. Bb6
{[%clk 0:01:31.9]} 1-0

[Event "*** Titled Tuesday Blitz"]
[Site "Chess.com"]
[Date "2018.05.01"]
[Round "5"]
[White "Abdodi"]
[Black "Kawhi_Leonard2"]
[Result "0-1"]
[WhiteElo "2018"]
[BlackElo "2171"]
[TimeControl "180+2"]
[EndTime "14:08:20 PDT"]
[Termination "Kawhi_Leonard2 won on time"]

1. e4 {[%clk 0:03:01.9]} 1... c5 {[%clk 0:03:00.3]} 2. d3 {[%clk 0:03:02.1]}
2... Nc6 {[%clk 0:03:00.5]} 3. Nf3 {[%clk 0:03:02]} 3... g6 {[%clk 0:03:01.9]}
4. c3 {[%clk 0:03:01.9]} 4... Bg7 {[%clk 0:03:03.3]} 5. g3 {[%clk 0:03:01.7]}
5... d5 {[%clk 0:02:54.1]} 6. Nbd2 {[%clk 0:02:59.7]} 6... dxe4 {[%clk
0:02:49.2]} 7. dxe4 {[%clk 0:02:59.8]} 7... Nf6 {[%clk 0:02:50]} 8. Qe2 {[%clk
0:03:00.1]} 8... O-O {[%clk 0:02:49.5]} 9. Bg2 {[%clk 0:03:00.9]} 9... Ng4
{[%clk 0:02:41.9]} 10. O-O {[%clk 0:02:58.6]} 10... b6 {[%clk 0:02:35.1]} 11. h3
{[%clk 0:02:58.3]} 11... Nge5 {[%clk 0:02:35.5]} 12. Nxe5 {[%clk 0:02:57.3]}
12... Nxe5 {[%clk 0:02:36.5]} 13. f4 {[%clk 0:02:51.1]} 13... Nd3 {[%clk
0:02:37.1]} 14. Nc4 {[%clk 0:02:46.4]} 14... Ba6 {[%clk 0:02:32]} 15. b3 {[%clk
0:02:34.2]} 15... Bxc3 {[%clk 0:02:25]} 16. Rb1 {[%clk 0:02:32.8]} 16... Nxc1
{[%clk 0:02:06.5]} 17. Rbxc1 {[%clk 0:02:31.4]} 17... Bd4+ {[%clk 0:02:04.7]}
18. Kh1 {[%clk 0:02:30.8]} 18... Qd7 {[%clk 0:01:59.2]} 19. h4 {[%clk
0:02:28.2]} 19... h5 {[%clk 0:01:56.9]} 20. f5 {[%clk 0:02:26.7]} 20... Qc7
{[%clk 0:01:45.6]} 21. Qf3 {[%clk 0:02:23.1]} 21... Rad8 {[%clk 0:01:34.1]} 22.
Kh2 {[%clk 0:02:13.5]} 22... Bxc4 {[%clk 0:01:31.6]} 23. Rxc4 {[%clk 0:02:13.1]}
23... Be5 {[%clk 0:01:32.9]} 24. Kh3 {[%clk 0:02:11.3]} 24... Kg7 {[%clk
0:01:29.1]} 25. b4 {[%clk 0:02:10.3]} 25... Qd6 {[%clk 0:01:18.5]} 26. bxc5
{[%clk 0:02:08.5]} 26... bxc5 {[%clk 0:01:19.7]} 27. Rfc1 {[%clk 0:02:07.2]}
27... Bd4 {[%clk 0:01:19.8]} 28. Qe2 {[%clk 0:01:48.6]} 28... Qe5 {[%clk
0:01:18.7]} 29. Qf3 {[%clk 0:01:28.4]} 29... Rb8 {[%clk 0:01:19.1]} 30. R4c2
{[%clk 0:01:25]} 30... Rb6 {[%clk 0:01:19.5]} 31. Rf1 {[%clk 0:01:18.2]} 31...
Rf6 {[%clk 0:01:18.1]} 32. Kh2 {[%clk 0:01:06.5]} 32... Rb8 {[%clk 0:01:17.9]}
33. Bh3 {[%clk 0:01:06.2]} 33... a5 {[%clk 0:01:12.3]} 34. Kg2 {[%clk
0:01:05.8]} 34... a4 {[%clk 0:01:13.3]} 35. Qe2 {[%clk 0:00:38.2]} 35... a3
{[%clk 0:01:13.1]} 36. Qf3 {[%clk 0:00:37.6]} 36... Rb2 {[%clk 0:01:13.2]} 37.
Rc1 {[%clk 0:00:33.5]} 37... Rfb6 {[%clk 0:01:04.7]} 38. g4 {[%clk 0:00:32.6]}
38... hxg4 {[%clk 0:01:01.3]} 39. Bxg4 {[%clk 0:00:31.6]} 39... Rxc2+ {[%clk
0:01:01.9]} 40. Rxc2 {[%clk 0:00:31.7]} 40... Rb2 {[%clk 0:01:03.5]} 41. Qd3
{[%clk 0:00:25.6]} 41... Qf4 {[%clk 0:00:53.6]} 42. Kh3 {[%clk 0:00:18.9]} 42...
Rb1 {[%clk 0:00:46.2]} 43. Rh2 {[%clk 0:00:13.6]} 43... Re1 {[%clk 0:00:38.2]}
44. Qc2 {[%clk 0:00:06.8]} 44... Rxe4 {[%clk 0:00:32.5]} 45. Rg2 {[%clk
0:00:04.5]} 45... Re3+ {[%clk 0:00:31.7]} 0-1

[Event "*** Titled Tuesday Blitz"]
[Site "Chess.com"]
[Date "2018.05.01"]
[Round "5"]
[White "GoingKronos"]
[Black "RojonR"]
[Result "0-1"]
[WhiteElo "2364"]
[BlackElo "2387"]
[TimeControl "180+2"]
[EndTime "14:08:30 PDT"]
[Termination "RojonR won by resignation"]

1. Nf3 {[%clk 0:03:01.9]} 1... d5 {[%clk 0:02:58.8]} 2. c4 {[%clk 0:03:01.6]}
2... c6 {[%clk 0:02:59.7]} 3. e3 {[%clk 0:03:02.1]} 3... Bg4 {[%clk 0:03:00.3]}
4. Qb3 {[%clk 0:02:58]} 4... Qb6 {[%clk 0:02:46.7]} 5. cxd5 {[%clk 0:02:50.5]}
5... Qxb3 {[%clk 0:02:43.9]} 6. axb3 {[%clk 0:02:51]} 6... Bxf3 {[%clk
0:02:40.4]} 7. gxf3 {[%clk 0:02:50.7]} 7... cxd5 {[%clk 0:02:41.9]} 8. Nc3
{[%clk 0:02:45]} 8... e6 {[%clk 0:02:18.8]} 9. Nb5 {[%clk 0:02:43]} 9... Kd7
{[%clk 0:02:16.7]} 10. Rxa7 {[%clk 0:02:39.5]} 10... Rxa7 {[%clk 0:02:16.7]} 11.
Nxa7 {[%clk 0:02:40.5]} 11... Nc6 {[%clk 0:02:17]} 12. Nb5 {[%clk 0:02:36.7]}
12... Na5 {[%clk 0:02:09.7]} 13. Nd4 {[%clk 0:02:21.6]} 13... e5 {[%clk
0:02:10.2]} 14. Bb5+ {[%clk 0:02:22.3]} 14... Kc7 {[%clk 0:02:10.8]} 15. Nf5
{[%clk 0:02:20]} 15... Nxb3 {[%clk 0:02:10.6]} 16. Ke2 {[%clk 0:02:20.8]} 16...
g6 {[%clk 0:02:05.1]} 17. Ng3 {[%clk 0:02:21.1]} 17... h5 {[%clk 0:02:04.2]} 18.
Rd1 {[%clk 0:02:14.3]} 18... Bd6 {[%clk 0:01:55.3]} 19. Ba4 {[%clk 0:02:06.8]}
19... Nxc1+ {[%clk 0:01:45.3]} 20. Rxc1+ {[%clk 0:02:07.2]} 20... Kb8 {[%clk
0:01:41.3]} 21. Bb3 {[%clk 0:01:54.8]} 21... Ne7 {[%clk 0:01:36.5]} 22. e4
{[%clk 0:01:47.7]} 22... h4 {[%clk 0:01:36.4]} 23. Nf1 {[%clk 0:01:48.5]} 23...
dxe4 {[%clk 0:01:19]} 24. fxe4 {[%clk 0:01:49.4]} 24... f5 {[%clk 0:01:16.2]}
25. d3 {[%clk 0:01:39.2]} 25... Nc6 {[%clk 0:01:14.6]} 26. Bf7 {[%clk 0:01:19]}
26... Nd4+ {[%clk 0:01:13]} 27. Kd1 {[%clk 0:01:13.1]} 27... fxe4 {[%clk
0:01:13.5]} 28. Bxg6 {[%clk 0:01:08]} 28... Rf8 {[%clk 0:00:58.8]} 29. Bxe4
{[%clk 0:00:53.8]} 29... Rxf2 {[%clk 0:00:58.5]} 30. Ne3 {[%clk 0:00:54.8]}
30... Bb4 {[%clk 0:00:45.5]} 31. Rc4 {[%clk 0:00:50.9]} 31... Rxb2 {[%clk
0:00:40.5]} 32. Nd5 {[%clk 0:00:41.8]} 32... Ba5 {[%clk 0:00:37.3]} 33. Ne7
{[%clk 0:00:38.4]} 33... Nb3 {[%clk 0:00:30.9]} 34. Rc8+ {[%clk 0:00:20.9]}
34... Ka7 {[%clk 0:00:31.4]} 35. Rh8 {[%clk 0:00:20.5]} 35... Rxh2 {[%clk
0:00:26.9]} 36. Nf5 {[%clk 0:00:20.4]} 36... h3 {[%clk 0:00:25.1]} 37. Bd5
{[%clk 0:00:21.3]} 37... Nc5 {[%clk 0:00:22.6]} 38. Be4 {[%clk 0:00:21.1]} 38...
Rd2+ {[%clk 0:00:19.7]} 39. Kc1 {[%clk 0:00:21.8]} 39... h2 {[%clk 0:00:20.5]}
40. Nd6 {[%clk 0:00:20.1]} 40... Nxe4 {[%clk 0:00:19.1]} 41. Nxe4 {[%clk
0:00:19.9]} 41... Rg2 {[%clk 0:00:20.1]} 42. Nd6 {[%clk 0:00:15.9]} 42... Rg1+
{[%clk 0:00:20.6]} 43. Kc2 {[%clk 0:00:17.8]} 43... h1=Q {[%clk 0:00:21.6]} 44.
Nb5+ {[%clk 0:00:19.7]} 44... Kb6 {[%clk 0:00:22]} 0-1

[Event "*** Titled Tuesday Blitz"]
[Site "Chess.com"]
[Date "2018.05.01"]
[Round "5"]
[White "Keaton87"]
[Black "ENEASZ"]
[Result "0-1"]
[WhiteElo "2452"]
[BlackElo "2455"]
[TimeControl "180+2"]
[EndTime "14:08:45 PDT"]
[Termination "ENEASZ won by checkmate"]

1. d4 {[%clk 0:03:01.9]} 1... d5 {[%clk 0:03:00.7]} 2. Nf3 {[%clk 0:03:02.6]}
2... Nf6 {[%clk 0:03:01.4]} 3. Bf4 {[%clk 0:03:03.7]} 3... c5 {[%clk 0:03:01.4]}
4. e3 {[%clk 0:03:05.1]} 4... Nc6 {[%clk 0:03:02.3]} 5. Be2 {[%clk 0:03:06]}
5... Qb6 {[%clk 0:03:02.7]} 6. Nc3 {[%clk 0:03:06.5]} 6... a6 {[%clk 0:03:02.4]}
7. Rb1 {[%clk 0:02:59.5]} 7... cxd4 {[%clk 0:03:03.2]} 8. exd4 {[%clk
0:02:58.5]} 8... Bg4 {[%clk 0:03:03.8]} 9. Na4 {[%clk 0:02:50.9]} 9... Qa5+
{[%clk 0:03:04.1]} 10. c3 {[%clk 0:02:52]} 10... e6 {[%clk 0:03:02.1]} 11. b4
{[%clk 0:02:47.3]} 11... Qd8 {[%clk 0:03:01.8]} 12. O-O {[%clk 0:02:42]} 12...
Bd6 {[%clk 0:02:59.4]} 13. Bg3 {[%clk 0:02:38]} 13... Bxg3 {[%clk 0:02:59.2]}
14. hxg3 {[%clk 0:02:39.9]} 14... O-O {[%clk 0:03:00.1]} 15. Ne5 {[%clk
0:02:28]} 15... Bxe2 {[%clk 0:02:58.8]} 16. Qxe2 {[%clk 0:02:28.3]} 16... Nxe5
{[%clk 0:02:49.9]} 17. dxe5 {[%clk 0:02:27.9]} 17... Nd7 {[%clk 0:02:48.5]} 18.
Qe3 {[%clk 0:02:19.2]} 18... Qc7 {[%clk 0:02:48.7]} 19. f4 {[%clk 0:02:17.9]}
19... Qc6 {[%clk 0:02:49.7]} 20. Nc5 {[%clk 0:02:12.9]} 20... Nxc5 {[%clk
0:02:46.7]} 21. Qxc5 {[%clk 0:02:09.6]} 21... Rfc8 {[%clk 0:02:36.5]} 22. Qxc6
{[%clk 0:02:09.8]} 22... Rxc6 {[%clk 0:02:37.3]} 23. Rf3 {[%clk 0:02:11]} 23...
Rac8 {[%clk 0:02:38]} 24. b5 {[%clk 0:02:06.5]} 24... Rc4 {[%clk 0:02:30.7]} 25.
bxa6 {[%clk 0:02:01.8]} 25... bxa6 {[%clk 0:02:32.6]} 26. Rb4 {[%clk 0:01:58]}
26... g6 {[%clk 0:02:27.6]} 27. Rb3 {[%clk 0:01:55.4]} 27... Ra4 {[%clk
0:02:26]} 28. a3 {[%clk 0:01:56.6]} 28... Kg7 {[%clk 0:02:24.8]} 29. Kf2 {[%clk
0:01:56.5]} 29... h6 {[%clk 0:02:19.2]} 30. Ke2 {[%clk 0:01:54]} 30... Rc5
{[%clk 0:02:15.3]} 31. Kd3 {[%clk 0:01:34.8]} 31... Rca5 {[%clk 0:02:15.6]} 32.
Rb7 {[%clk 0:01:31.1]} 32... Rxa3 {[%clk 0:02:15.7]} 33. Rc7 {[%clk 0:01:32.1]}
33... R5a4 {[%clk 0:02:08.1]} 34. Kc2 {[%clk 0:01:20.4]} 34... Ra5 {[%clk
0:01:56.2]} 35. Kd3 {[%clk 0:01:19.7]} 35... R5a4 {[%clk 0:01:56.6]} 36. Kc2
{[%clk 0:01:20.5]} 36... Re4 {[%clk 0:01:55.3]} 37. Kb2 {[%clk 0:01:17.4]} 37...
Ra5 {[%clk 0:01:55.9]} 38. Rf2 {[%clk 0:01:00.7]} 38... Re3 {[%clk 0:01:54.1]}
39. g4 {[%clk 0:01:00.5]} 39... Ra4 {[%clk 0:01:47.3]} 40. Kb3 {[%clk
0:00:56.3]} 40... Rae4 {[%clk 0:01:44.1]} 41. f5 {[%clk 0:00:44.6]} 41... gxf5
{[%clk 0:01:45.2]} 42. gxf5 {[%clk 0:00:45.3]} 42... Rxe5 {[%clk 0:01:45.9]} 43.
fxe6 {[%clk 0:00:46.2]} 43... Rxe6 {[%clk 0:01:46.3]} 44. Rfxf7+ {[%clk
0:00:42]} 44... Kg6 {[%clk 0:01:47.4]} 45. Rg7+ {[%clk 0:00:43.3]} 45... Kf5
{[%clk 0:01:44.9]} 46. g4+ {[%clk 0:00:42.8]} 46... Kf4 {[%clk 0:01:43.5]} 47.
Rcf7+ {[%clk 0:00:40.1]} 47... Ke4 {[%clk 0:01:41.9]} 48. g5 {[%clk 0:00:37.3]}
48... d4 {[%clk 0:01:31.9]} 49. Rc7 {[%clk 0:00:29.5]} 49... Rb6+ {[%clk
0:01:22.4]} 50. Kc2 {[%clk 0:00:15.8]} 50... Re2+ {[%clk 0:01:23.1]} 51. Kc1
{[%clk 0:00:11.2]} 51... Kd3 {[%clk 0:00:59.9]} 52. Rge7 {[%clk 0:00:05.4]}
52... Rc2+ {[%clk 0:00:57.1]} 53. Kd1 {[%clk 0:00:05.9]} 53... Rb1# {[%clk
0:00:59]} 0-1